bitfinex-derivatives/quotes_BTCF0:USTF0_20250422
["timestamp","ask_amount","ask_price","bid_price","bid_amount"]
[1745289984172,0.1258,88024.0,88023.0,0.1778043]
[1745289990978,0.1258,88024.0,88023.0,0.19280821]
[1745289991688,0.1258,88024.0,88023.0,0.12860821]
[1745289992480,0.1258,88024.0,88023.0,0.1136043]
[1745289996194,0.2394031,88024.0,88023.0,0.1136043]
[1745289998285,0.1258,88024.0,88023.0,0.1136043]
[1745289999382,0.1864,88024.0,88023.0,0.1136043]
[1745289999986,0.1274,88024.0,88023.0,0.1725043]
[1745290000188,0.0626,88024.0,88023.0,0.1725043]
[1745290000690,0.0626,88024.0,88023.0,0.24901938]
[1745290001493,0.1231,88024.0,88023.0,0.24901938]
[1745290003092,0.1231,88024.0,88023.0,0.2340043]
[1745290005393,0.1231,88024.0,88023.0,0.24902176]
[1745290006195,0.1231,88024.0,88023.0,0.2340043]
[1745290007794,0.1231,88024.0,88023.0,0.24901767]
[1745290008895,0.1231,88024.0,88023.0,0.2340043]
[1745290010504,0.1231,88024.0,88023.0,0.24921256]
[1745290011297,0.1631,88024.0,88023.0,0.24921256]
[1745290011498,0.1231,88024.0,88023.0,0.24921256]
[1745290011798,0.1231,88024.0,88023.0,0.26616073]
[1745290012100,0.1231,88024.0,88023.0,0.24921256]
[1745290012790,0.1231,88024.0,88023.0,0.26628222]
[1745290013197,0.1135813,88041.0,88031.0,0.113594]
[1745290013386,0.0611,88033.0,88031.0,0.49146366]
[1745290013587,0.08072,88035.0,88031.0,0.49146366]
[1745290013788,0.4095,88052.0,88046.0,0.1135747]
[1745290013789,0.0589,88047.0,88046.0,0.1135747]
[1745290014096,0.08072,88047.0,88046.0,0.145754]
[1745290014296,0.08072,88047.0,88046.0,0.12878296]
[1745290014495,0.08072,88047.0,88046.0,0.19704943]
[1745290014698,0.4095,88052.0,88051.0,0.1135682]
[1745290014895,0.22773957,88053.0,88052.0,0.1135669]
[1745290015496,0.22773957,88053.0,88052.0,0.12777516]
[1745290016596,0.137499,88059.0,88058.0,0.1125592]
[1745290016899,0.20302,88059.0,88058.0,0.12676746]
[1745290017495,0.20302,88059.0,88058.0,0.1115592]
[1745290017802,0.20402,88059.0,88058.0,0.1115592]
[1745290018592,0.20502,88059.0,88058.0,0.1115592]
[1745290019694,0.002,88059.0,88058.0,0.1726592]
[1745290019903,0.002,88059.0,88058.0,0.6522592]
[1745290020090,0.002,88059.0,88058.0,0.2322592]
[1745290021000,0.001,88059.0,88058.0,0.2322592]
[1745290021192,0.001,88059.0,88058.0,0.24731196]
[1745290021698,0.00017043,88060.0,88059.0,0.1125579]
[1745290021903,0.06117043,88060.0,88059.0,0.1125579]
[1745290022102,0.00017043,88060.0,88059.0,0.2317579]
[1745290022505,0.00017043,88060.0,88059.0,0.24681066]
[1745290023301,0.00117043,88060.0,88059.0,0.2317579]
[1745290023604,0.00117043,88060.0,88059.0,0.1706579]
[1745290023907,0.12547043,88060.0,88059.0,0.1706579]
[1745290024305,0.12547043,88060.0,88056.0,0.0567803]
[1745290024306,0.1135618,88056.0,88055.0,0.3608]
[1745290024509,0.1135721,88048.0,88047.0,0.3608]
[1745290024706,0.1335721,88048.0,88047.0,0.4743734]
[1745290025512,0.2142521,88048.0,88047.0,0.4743734]
[1745290025704,0.2565521,88048.0,88047.0,0.4764534]
[1745290026396,0.14298,88048.0,88047.0,0.4764534]
[1745290026810,0.08068,88048.0,88047.0,0.4764534]
[1745290027012,0.08068,88048.0,88047.0,0.6015534]
[1745290027512,0.08068,88048.0,88047.0,0.6025534]
[1745290027708,0.08068,88048.0,88047.0,0.61747872]
[1745290029615,0.08068,88057.0,88056.0,0.1135618]
[1745290029913,0.08068,88057.0,88056.0,0.48928712]
[1745290030412,0.08068,88057.0,88056.0,0.61278712]
[1745290030714,0.08068,88057.0,88056.0,0.5978618]
[1745290031214,0.0605,88058.0,88057.0,0.1135605]
[1745290031513,0.1844,88058.0,88057.0,0.1135605]
[1745290031715,0.1844,88058.0,88057.0,0.1765605]
[1745290032906,0.1844,88058.0,88057.0,0.2361605]
[1745290034614,0.1844,88058.0,88057.0,0.1135605]
[1745290034615,0.2979592,88058.0,88057.0,0.1135605]
[1745290034910,0.2979592,88058.0,88040.0,0.1050914]
[1745290034911,0.1135734,88047.0,88043.0,0.00017043]
[1745290035215,0.1135734,88047.0,88046.0,0.4743747]
[1745290035606,0.1473472,88047.0,88043.0,0.11374563]
[1745290035812,0.1135773,88044.0,88043.0,0.17053383]
[1745290036112,0.1135773,88044.0,88043.0,0.17061383]
[1745290036806,0.1135773,88044.0,88043.0,0.22840213]
[1745290037911,0.1135773,88044.0,88043.0,0.23040213]
[1745290038114,0.1135773,88044.0,88043.0,0.23140213]
[1745290039310,0.12,88046.0,88045.0,0.113576]
[1745290039707,0.20056,88046.0,88045.0,0.113576]
[1745290039908,0.3141347,88046.0,88045.0,0.113576]
[1745290040115,0.3141347,88046.0,88045.0,0.113656]
[1745290040508,0.3141347,88046.0,88045.0,0.115656]
[1745290040708,0.3141347,88046.0,88045.0,0.00208]
[1745290040915,0.3141347,88046.0,88032.0,0.0567963]
[1745290040916,0.1135967,88033.0,88032.0,0.1135882]
[1745290041317,0.2928967,88033.0,88032.0,0.1135882]
[1745290041702,0.1135992,88027.0,88026.0,0.3608]
[1745290041902,0.1135992,88027.0,88026.0,0.4744005]
[1745290042114,0.1135992,88027.0,88026.0,0.4744805]
[1745290042416,0.1135992,88027.0,88026.0,0.4744005]
[1745290042712,0.1135992,88027.0,88026.0,0.4744805]
[1745290043505,0.1768986,88029.0,88026.0,0.4744805]
[1745290043506,0.1135983,88028.0,88027.0,0.1135979]
[1745290043707,0.1135983,88028.0,88027.0,0.2298979]
[1745290043911,0.2311983,88028.0,88027.0,0.2449872]
[1745290044304,0.00017043,88035.0,88029.0,0.0567981]
[1745290044607,0.00017043,88035.0,88034.0,0.4733902]
[1745290044916,0.00017043,88035.0,88034.0,0.4884795]
[1745290045106,0.00017043,88035.0,88034.0,0.4874795]
[1745290045307,0.00017043,88035.0,88034.0,0.6110795]
[1745290045516,0.00017043,88035.0,88034.0,0.62795846]
[1745290045906,0.00017043,88035.0,88034.0,0.6110795]
[1745290046506,0.00017043,88035.0,88034.0,0.6100795]
[1745290047311,0.00017043,88035.0,88034.0,0.6130795]
[1745290047709,0.00017043,88035.0,88034.0,0.6160795]
[1745290049708,0.05917043,88035.0,88034.0,0.6160795]
[1745290051221,0.05917043,88035.0,88034.0,0.2582795]
[1745290051413,0.05917043,88035.0,88034.0,0.6190795]
[1745290054524,0.00017043,88035.0,88034.0,0.6190795]
[1745290054916,0.00017043,88035.0,88034.0,0.63583438]
[1745290057527,0.00017043,88035.0,88034.0,0.6358175]
[1745290058420,0.00017043,88035.0,88034.0,0.63603192]
[1745290061232,0.08056,88040.0,88034.0,0.63603192]
[1745290061233,0.08056,88040.0,88039.0,0.1135837]
[1745290061426,8e-05,88044.0,88043.0,0.1135785]
[1745290061620,8e-05,88044.0,88043.0,0.13053092]
[1745290061825,8e-05,88044.0,88043.0,0.14562022]
[1745290062026,0.08070581,88050.0,88049.0,0.1135708]
[1745290062027,0.08056,88050.0,88049.0,0.1135708]
[1745290062325,0.08056,88050.0,88049.0,0.49132322]
[1745290062528,0.08056,88050.0,88049.0,0.50641252]
[1745290062727,0.08064,88050.0,88049.0,0.50641252]
[1745290063230,0.08064,88050.0,88049.0,0.62541252]
[1745290064032,8e-05,88050.0,88049.0,0.62541252]
[1745290064732,8e-05,88050.0,88049.0,0.62641252]
[1745290065627,8e-05,88050.0,88049.0,0.62590758]
[1745290068137,8e-05,88050.0,88049.0,0.26510758]
[1745290068330,8e-05,88050.0,88049.0,0.62590758]
[1745290069335,8e-05,88050.0,88049.0,0.62592494]
[1745290070125,8e-05,88050.0,88049.0,0.6094601]
[1745290073349,0.06150801,88057.0,88056.0,0.1135618]
[1745290073543,0.12450801,88057.0,88056.0,0.1135618]
[1745290074143,0.12450801,88057.0,88056.0,0.2527511]
[1745290074543,0.1244,88057.0,88056.0,0.2527511]
[1745290074743,0.12448,88057.0,88056.0,0.2537511]
[1745290075448,0.12448,88057.0,88056.0,0.1900511]
[1745290075644,0.12448,88057.0,88056.0,0.1910511]
[1745290077547,0.08044,88062.0,88058.0,0.0567796]
[1745290077743,0.08044,88062.0,88061.0,0.4743553]
[1745290078247,0.08052,88062.0,88061.0,0.4743553]
[1745290078644,8e-05,88062.0,88061.0,0.5532446]
[1745290078856,0.08057034,88070.0,88069.0,0.113545]
[1745290079053,0.1401,88077.0,88076.0,0.113536]
[1745290079350,0.0597,88077.0,88076.0,0.1286253]
[1745290079550,0.4095,88093.0,88086.0,0.1135231]
[1745290079848,0.0854,88087.0,88086.0,0.1135231]
[1745290080842,0.2031,88087.0,88086.0,0.1135231]
[1745290081248,0.2031,88087.0,88086.0,0.1125231]
[1745290081453,0.2041,88087.0,88086.0,0.1125231]
[1745290082157,0.2051,88087.0,88086.0,0.1125231]
[1745290082550,0.20518,88087.0,88086.0,0.1125231]
[1745290085855,0.20518,88087.0,88086.0,0.1750231]
[1745290086644,0.08748,88087.0,88086.0,0.1750231]
[1745290087050,0.08648,88087.0,88086.0,0.1750231]
[1745290087260,0.0854,88087.0,88086.0,0.1760231]
[1745290087952,0.08548,88087.0,88086.0,0.1760231]
[1745290092358,0.0854,88087.0,88086.0,0.1760231]
[1745290092551,0.005,88087.0,88086.0,0.1760231]
[1745290092855,0.00508,88087.0,88086.0,0.1135231]
[1745290094255,0.00508,88087.0,88086.0,0.1766231]
[1745290094965,0.0567535,88099.0,88091.0,0.1702748]
[1745290094966,0.00010801,88092.0,88091.0,0.1702748]
[1745290095163,0.00010801,88092.0,88091.0,0.9710748]
[1745290095366,0.00010801,88092.0,88091.0,0.5310748]
[1745290095864,0.06280801,88092.0,88091.0,0.6508748]
[1745290096165,0.00010801,88092.0,88091.0,0.6508748]
[1745290096356,0.0627,88094.0,88093.0,0.1135141]
[1745290098158,0.00017034,88095.0,88094.0,0.1135128]
[1745290098565,0.00010801,88099.0,88098.0,0.1135076]
[1745290099361,0.05920801,88099.0,88098.0,0.1135076]
[1745290100071,0.06020801,88099.0,88098.0,0.1135076]
[1745290100466,0.00110801,88099.0,88098.0,0.1135076]
[1745290100658,0.00210801,88099.0,88098.0,0.3135076]
[1745290100863,0.0591,88110.0,88098.0,0.2]
[1745290101064,0.0606,88110.0,88109.0,0.1134935]
[1745290101262,0.005,88113.0,88109.0,0.1134935]
[1745290101263,0.00014581,88112.0,88111.0,0.1134909]
[1745290101462,0.1197,88122.0,88115.0,0.0567426]
[1745290101666,0.1197,88122.0,88121.0,0.113478]
[1745290101667,0.18316257,88122.0,88121.0,0.113478]
[1745290101868,0.1827,88122.0,88121.0,0.323478]
[1745290102066,0.12368,88122.0,88121.0,0.113478]
[1745290102272,8e-05,88122.0,88121.0,0.223478]
[1745290102463,0.0606,88126.0,88122.0,0.1134767]
[1745290102669,0.00010801,88127.0,88122.0,0.1124767]
[1745290102965,0.1134732,88125.0,88122.0,0.1124767]
[1745290103159,0.05684311,88127.0,88122.0,0.1124767]
[1745290103361,0.00010801,88127.0,88122.0,0.1124767]
[1745290103670,0.00010801,88127.0,88126.0,0.1134716]
[1745290104258,0.00010801,88127.0,88126.0,0.2377716]
[1745290104465,0.0628,88136.0,88135.0,0.11346]
[1745290104659,0.06299684,88136.0,88135.0,0.11346]
[1745290104968,0.0628,88136.0,88135.0,0.11346]
[1745290105167,0.06288,88136.0,88135.0,0.11346]
[1745290105366,0.0628,88136.0,88135.0,0.12205171]
[1745290105670,0.08024,88137.0,88136.0,0.1134587]
[1745290105872,0.08024,88137.0,88136.0,0.2348587]
[1745290106373,0.00014581,88143.0,88137.0,0.0567287]
[1745290106576,0.00014581,88143.0,88142.0,0.474251]
[1745290106874,0.0567219,88148.0,88147.0,0.1134445]
[1745290107172,0.1134415,88150.0,88149.0,0.1134407]
[1745290107565,8e-05,88143.0,88078.0,0.5676609]
[1745290107766,0.1701827,88139.0,88138.0,0.1134561]
[1745290108068,0.1134638,88132.0,88113.0,0.3608]
[1745290108272,0.5745038,88132.0,88124.0,0.0567368]
[1745290108475,0.5745038,88132.0,88131.0,0.11363534]
[1745290108862,0.08024,88132.0,88131.0,0.11363534]
[1745290109371,0.0567266,88141.0,88140.0,0.1134535]
[1745290109568,0.17671357,88142.0,88141.0,0.1134523]
[1745290109768,0.25695357,88142.0,88141.0,0.1134523]
[1745290110469,0.256491,88142.0,88141.0,0.1134523]
[1745290110668,0.256571,88142.0,88141.0,0.1134523]
[1745290113373,0.256571,88142.0,88141.0,0.1562523]
[1745290113778,0.176331,88142.0,88141.0,0.1562523]
[1745290114172,0.219931,88142.0,88141.0,0.1562523]
[1745290115487,0.00046257,88148.0,88146.0,0.1134458]
[1745290115781,0.00046257,88148.0,88146.0,0.4742458]
[1745290115970,0.0567146,88159.0,88155.0,0.0567161]
[1745290116167,0.0567146,88159.0,88157.0,0.1134317]
[1745290116168,0.1003152,88158.0,88157.0,0.1134317]
[1745290116377,0.1103152,88158.0,88157.0,0.1134317]
[1745290117579,0.1103152,88158.0,88157.0,0.1144317]
[1745290117782,0.1905152,88158.0,88157.0,0.1144317]
[1745290118374,0.1905152,88158.0,88157.0,0.1142722]
[1745290118572,0.1905152,88158.0,88157.0,0.1152722]
[1745290119382,0.1905152,88158.0,88157.0,0.1623722]
[1745290119984,0.1936304,88158.0,88157.0,0.1623722]
[1745290120184,0.1704,88158.0,88157.0,0.1623722]
[1745290120374,0.2838304,88158.0,88157.0,0.1623722]
[1745290125786,0.1134304,88158.0,88157.0,0.1623722]
[1745290125979,0.1934704,88158.0,88157.0,0.1623722]
[1745290126585,0.2382704,88158.0,88157.0,0.1623722]
[1745290128283,0.12504,88158.0,88157.0,0.1623722]
[1745290128484,0.2384704,88158.0,88157.0,0.1623722]
[1745290131291,0.2814704,88158.0,88157.0,0.1623722]
[1745290131884,0.1934704,88158.0,88157.0,0.1623722]
[1745290132582,0.1934704,88158.0,88157.0,0.2079722]
[1745290134990,0.2375704,88158.0,88157.0,0.2079722]
[1745290135190,0.2375704,88158.0,88157.0,0.3999722]
[1745290136186,0.2375704,88158.0,88157.0,0.2079722]
[1745290137890,0.2375704,88158.0,88157.0,0.0947]
[1745290138092,0.2375704,88158.0,88157.0,0.1625317]
[1745290140995,0.2375704,88158.0,88146.0,0.0567227]
[1745290140996,0.1134407,88150.0,88145.0,0.0567229]
[1745290141190,0.1134407,88150.0,88149.0,0.11360974]
[1745290141600,0.1134407,88150.0,88149.0,0.15750974]
[1745290141794,0.1540407,88150.0,88149.0,0.15750974]
[1745290141995,0.1540407,88150.0,88149.0,0.15950974]
[1745290142800,0.1540407,88150.0,88149.0,0.15750974]
[1745290143006,0.1540407,88150.0,88149.0,0.15850974]
[1745290143191,0.1540407,88150.0,88149.0,0.16050974]
[1745290143600,0.1540407,88150.0,88149.0,0.15850974]
[1745290144298,0.1540407,88150.0,88149.0,0.19990974]
[1745290144799,0.1540407,88150.0,88149.0,0.19890974]
[1745290148397,0.1134364,88154.0,88153.0,0.1134355]
[1745290148602,0.1134364,88154.0,88153.0,0.2401355]
[1745290148801,0.08004,88154.0,88153.0,0.2401355]
[1745290149110,0.1934755,88154.0,88153.0,0.4321355]
[1745290149599,0.1934755,88154.0,88153.0,0.4331355]
[1745290150303,0.1934755,88154.0,88153.0,0.4341355]
[1745290151105,0.1934755,88154.0,88153.0,0.2421355]
[1745290151899,0.08004,88154.0,88153.0,0.2421355]
[1745290152205,0.08004,88154.0,88153.0,0.4341355]
[1745290152406,0.08012,88154.0,88153.0,0.4341355]
[1745290153598,0.08012,88154.0,88153.0,0.4331355]
[1745290153801,0.08012,88154.0,88153.0,0.4341355]
[1745290154000,8e-05,88154.0,88153.0,0.4341355]
[1745290154204,0.00010801,88158.0,88157.0,0.1134317]
[1745290154402,0.17067747,88163.0,88162.0,0.1134252]
[1745290154403,0.17041174,88163.0,88162.0,0.1134252]
[1745290154601,0.17041174,88163.0,88162.0,0.2834252]
[1745290154802,0.17041174,88163.0,88162.0,0.1134252]
[1745290155203,0.17041174,88163.0,88162.0,0.4267252]
[1745290155504,0.17041174,88163.0,88162.0,0.3871252]
[1745290155710,0.17041174,88163.0,88162.0,0.3881252]
[1745290157106,0.17049174,88163.0,88162.0,0.3881252]
[1745290157509,0.17049174,88163.0,88162.0,0.3871252]
[1745290158405,8e-05,88163.0,88162.0,0.3871252]
[1745290171815,0.39432,102500.0,88162.0,0.3871252]
[1745290172020,0.0566401,88275.0,88216.0,0.3608]
[1745290172213,0.2670178,88243.0,88242.0,0.8349224]
[1745290172510,0.005,88243.0,88242.0,0.73012027]
[1745290172716,0.5260205,88243.0,88242.0,0.8349224]
[1745290173021,0.80946451,88243.0,88235.0,0.0566655]
[1745290173317,0.0790427,88236.0,88235.0,0.1133314]
[1745290173513,0.0790427,88234.0,88229.0,0.0566691]
[1745290173718,0.3608,88241.0,88229.0,0.1133391]
[1745290173719,0.0790427,88230.0,88229.0,0.1133391]
[1745290174113,0.4409405,88230.0,88229.0,0.1133391]
[1745290174815,0.3610605,88230.0,88229.0,0.1133391]
[1745290175015,0.4409405,88230.0,88229.0,0.1143391]
[1745290175716,0.4409405,88230.0,88229.0,0.1153391]
[1745290176516,0.4409405,88230.0,88229.0,0.1163391]
[1745290178015,0.4409405,88230.0,88229.0,0.003]
[1745290178319,0.0790427,88222.0,88207.0,0.3608]
[1745290178524,0.1357257,88208.0,88200.0,0.00869138]
[1745290178718,0.1133777,88199.0,88198.0,0.3608]
[1745290178917,0.1690427,88199.0,88198.0,0.4741789]
[1745290179136,0.5444382,88199.0,88198.0,0.4741789]
[1745290179717,0.6578182,88199.0,88198.0,0.4741789]
[1745290179917,0.6578182,88199.0,88198.0,0.4751789]
[1745290180113,0.6588182,88199.0,88198.0,0.1143789]
[1745290180519,0.7021182,88199.0,88198.0,0.1143789]
[1745290181828,0.7031182,88199.0,88198.0,0.1133789]
[1745290182127,0.5897405,88199.0,88198.0,0.1133789]
[1745290182727,0.5562405,88199.0,88198.0,0.1133789]
[1745290182925,0.5563205,88199.0,88198.0,0.1133789]
[1745290183129,0.4764405,88199.0,88198.0,0.3053789]
[1745290183425,0.5563205,88199.0,88198.0,0.3053789]
[1745290184216,0.4764405,88199.0,88198.0,0.3053789]
[1745290184424,0.5563205,88199.0,88198.0,0.3053789]
[1745290185724,0.2943027,88199.0,88198.0,0.3053789]
[1745290185929,0.5563205,88199.0,88198.0,0.3053789]
[1745290187730,0.6696982,88199.0,88198.0,0.3053789]
[1745290193135,0.6696982,88199.0,88198.0,0.1133789]
[1745290193330,0.7118982,88199.0,88198.0,0.1133789]
[1745290194140,0.7118982,88199.0,88198.0,0.3053789]
[1745290194832,0.6320182,88199.0,88198.0,0.3053789]
[1745290195035,0.7117782,88199.0,88198.0,0.3053789]
[1745290195730,0.6320182,88199.0,88198.0,0.3053789]
[1745290196236,0.7117782,88199.0,88198.0,0.3053789]
[1745290196635,0.7117782,88199.0,88198.0,0.192]
[1745290197238,0.7117782,88199.0,88193.0,0.1133849]
[1745290197239,0.1133841,88194.0,88193.0,0.1133849]
[1745290197434,0.3424268,88194.0,88193.0,0.1133849]
[1745290197737,0.6044446,88194.0,88193.0,0.1133849]
[1745290198039,0.1133879,88191.0,88190.0,0.00017001]
[1745290198239,0.3224306,88191.0,88190.0,0.00017001]
[1745290198429,0.5844484,88191.0,88190.0,0.00017001]
[1745290199831,0.5844484,88191.0,88190.0,0.11355921]
[1745290200235,0.5854484,88191.0,88190.0,0.30555921]
[1745290200744,0.6652084,88191.0,88190.0,0.30555921]
[1745290200931,0.6642084,88191.0,88190.0,0.30655921]
[1745290201131,0.6652084,88191.0,88190.0,0.11455921]
[1745290201440,0.6652084,88191.0,88190.0,0.11355921]
[1745290201645,0.5864484,88191.0,88190.0,0.11355921]
[1745290201841,0.6662084,88191.0,88190.0,0.11355921]
[1745290203040,0.6652084,88191.0,88190.0,0.11355921]
[1745290203232,0.6662084,88191.0,88190.0,0.30555921]
[1745290205341,0.6652084,88191.0,88190.0,0.30555921]
[1745290206038,0.6662084,88191.0,88190.0,0.30555921]
[1745290206238,0.6652084,88191.0,88190.0,0.30555921]
[1745290206447,0.6662084,88191.0,88190.0,0.30555921]
[1745290207051,0.6652084,88191.0,88190.0,0.30555921]
[1745290207253,0.6662084,88191.0,88190.0,0.30555921]
[1745290207840,0.6652084,88191.0,88190.0,0.30555921]
[1745290208146,0.6662084,88191.0,88190.0,0.30555921]
[1745290208647,0.5864484,88191.0,88190.0,0.30555921]
[1745290208847,0.6662084,88191.0,88190.0,0.30555921]
[1745290209249,0.6662084,88191.0,88190.0,0.11355921]
[1745290210839,0.6652084,88191.0,88190.0,0.11355921]
[1745290211041,0.6662084,88191.0,88190.0,0.11355921]
[1745290211238,0.6652084,88191.0,88190.0,0.11355921]
[1745290211442,0.6662084,88191.0,88190.0,0.11355921]
[1745290212150,0.6662084,88191.0,88190.0,0.30555921]
[1745290212652,0.5864484,88191.0,88190.0,0.30555921]
[1745290212849,0.6662084,88191.0,88190.0,0.30555921]
[1745290213749,0.6662084,88191.0,88190.0,0.19217001]
[1745290214046,1.0296004,88191.0,88190.0,0.04646143]
[1745290214244,0.1134173,88170.0,88169.0,0.1701241]
[1745290214441,0.3231773,88170.0,88169.0,0.1701241]
[1745290214642,0.6488951,88170.0,88169.0,0.1701241]
[1745290214839,0.2935178,88170.0,88169.0,0.17875578]
[1745290215037,0.3608,88180.0,88178.0,0.1134047]
[1745290215038,0.1456034,88179.0,88178.0,0.1134047]
[1745290215339,0.3957978,88179.0,88178.0,0.1134047]
[1745290215548,0.5889612,88179.0,88178.0,0.1134047]
[1745290216247,0.5889612,88179.0,88178.0,0.3064047]
[1745290217041,0.5889612,88179.0,88178.0,0.3054047]
[1745290219355,0.5889612,88179.0,88178.0,0.3064047]
[1745290221461,0.6680039,88179.0,88178.0,0.193]
[1745290222352,0.5882439,88179.0,88178.0,0.001]
[1745290222557,0.3257978,88179.0,88178.0,0.1144047]
[1745290222763,8e-05,88179.0,88178.0,0.1134047]
[1745290223061,0.00017011,88187.0,88186.0,0.1133944]
[1745290223254,0.20328321,88187.0,88186.0,0.1133944]
[1745290223455,0.49680101,88187.0,88186.0,0.1133944]
[1745290223650,0.49680101,88187.0,88186.0,0.1123944]
[1745290223851,0.41708101,88187.0,88186.0,0.1123944]
[1745290224057,0.49680101,88187.0,88186.0,0.1123944]
[1745290224271,0.49680101,88187.0,88186.0,0.3043944]
[1745290225863,0.49680101,88187.0,88186.0,0.3053944]
[1745290226572,0.49680101,88187.0,88186.0,0.3043944]
[1745290226871,0.49680101,88187.0,88186.0,0.3053944]
[1745290230471,0.49680101,88187.0,88186.0,0.3043944]
[1745290230668,0.49780101,88187.0,88186.0,0.3043944]
[1745290232578,0.41808101,88187.0,88186.0,0.3043944]
[1745290232774,0.49776101,88187.0,88186.0,0.3053944]
[1745290233071,0.49676101,88187.0,88186.0,0.3053944]
[1745290234773,0.49676101,88187.0,88186.0,0.3063944]
[1745290236272,0.49776101,88187.0,88186.0,0.3063944]
[1745290236772,0.41808101,88187.0,88186.0,0.3063944]
[1745290236971,0.49776101,88187.0,88186.0,0.3063944]
[1745290237281,0.41808101,88187.0,88186.0,0.3053944]
[1745290237577,0.57680371,88187.0,88186.0,0.192]
[1745290237776,0.69019972,88187.0,88186.0,0.192]
[1745290238270,0.69019972,88187.0,88164.0,0.4215]
[1745290238271,0.38373061,88187.0,88170.0,0.1353914]
[1745290238467,0.4872922,88186.0,88185.0,0.1133957]
[1745290238970,0.4873722,88186.0,88185.0,0.1133957]
[1745290239169,0.4873722,88186.0,88185.0,0.3053957]
[1745290239372,0.4873722,88186.0,88185.0,0.3356957]
[1745290239768,0.4872922,88186.0,88185.0,0.3366957]
[1745290239965,0.4873722,88186.0,88185.0,0.3366957]
[1745290241177,0.3739778,88186.0,88185.0,0.3063957]
[1745290241674,0.4873722,88186.0,88185.0,0.3365957]
[1745290242380,0.4873722,88186.0,88185.0,0.3063957]
[1745290243771,0.4076922,88186.0,88185.0,0.3063957]
[1745290243966,0.4873722,88186.0,88185.0,0.3063957]
[1745290244174,0.3739778,88186.0,88185.0,0.3063957]
[1745290244873,0.4873722,88186.0,88185.0,0.3063957]
[1745290245174,0.5180722,88186.0,88185.0,0.3063957]
[1745290248584,0.4383922,88186.0,88185.0,0.3063957]
[1745290248785,0.5179922,88186.0,88185.0,0.3063957]
[1745290248987,0.4383922,88186.0,88185.0,0.3063957]
[1745290249186,0.5179922,88186.0,88185.0,0.3063957]
[1745290249683,0.4383922,88186.0,88185.0,0.3063957]
[1745290249888,0.5179922,88186.0,88185.0,0.3063957]
[1745290251580,0.6970349,88186.0,88185.0,0.3063957]
[1745290251884,0.5179922,88186.0,88185.0,0.3063957]
[1745290252089,0.00010801,88193.0,88185.0,0.667196]
[1745290252387,0.0796,88196.0,88191.0,0.3608]
[1745290252578,0.0331,88207.0,88206.0,0.1133687]
[1745290252778,0.1127,88207.0,88206.0,0.4741687]
[1745290252982,0.4084852,88207.0,88206.0,0.4741687]
[1745290253287,0.4881652,88207.0,88206.0,0.4731687]
[1745290253695,0.3747978,88207.0,88206.0,0.4731687]
[1745290254080,0.4881652,88207.0,88206.0,0.6651687]
[1745290254382,0.3747978,88207.0,88206.0,0.3053687]
[1745290254978,0.0331,88207.0,88206.0,0.3364687]
[1745290255180,0.11278,88207.0,88206.0,0.3374687]
[1745290255488,0.11278,88207.0,88206.0,0.3384687]
[1745290255683,0.11278,88207.0,88206.0,0.3693687]
[1745290257087,0.11278,88207.0,88206.0,0.3683687]
[1745290257292,0.11278,88207.0,88206.0,0.3693687]
[1745290258188,0.5672079,88207.0,88206.0,0.193]
[1745290258394,0.5672079,88207.0,88206.0,0.194]
[1745290258594,0.6772079,88207.0,88206.0,0.194]
[1745290258796,0.6772079,88207.0,88206.0,0.193]
[1745290258991,0.5672079,88207.0,88206.0,0.3073687]
[1745290259195,0.5672079,88207.0,88206.0,0.1153687]
[1745290259494,0.6772079,88207.0,88206.0,0.1153687]
[1745290260387,0.5672079,88207.0,88206.0,0.1153687]
[1745290260585,0.5672079,88207.0,88206.0,0.002]
[1745290260586,0.6572079,88207.0,88206.0,0.002]
[1745290260898,0.5672079,88207.0,88206.0,0.1153687]
[1745290261597,0.5672079,88207.0,88206.0,0.1143687]
[1745290261793,0.6805799,88207.0,88206.0,0.001]
[1745290262092,0.1924152,88203.0,88202.0,0.08084188]
[1745290262291,0.1133777,88199.0,88188.0,0.3608]
[1745290262492,0.5832204,88199.0,88179.0,0.0898015]
[1745290262692,0.8452382,88199.0,88194.0,0.1133833]
[1745290262995,0.8452382,88199.0,88195.0,0.1133825]
[1745290263197,0.8452382,88199.0,88189.0,0.0566952]
[1745290263492,0.8462382,88199.0,88186.0,0.3608]
[1745290263686,0.8462382,88199.0,88194.0,0.1133835]
[1745290264488,0.8462382,88199.0,88189.0,0.0566948]
[1745290264787,0.8472382,88199.0,88195.0,0.1133826]
[1745290265089,0.9268382,88199.0,88195.0,0.1133826]
[1745290265289,0.9258382,88199.0,88195.0,0.1133826]
[1745290265488,0.9268382,88199.0,88195.0,0.1133826]
[1745290265693,0.9278382,88199.0,88196.0,0.1133809]
[1745290265995,0.9278382,88199.0,88195.0,0.1133826]
[1745290266192,0.5650382,88199.0,88195.0,0.1133826]
[1745290266385,0.5660382,88199.0,88195.0,0.1133826]
[1745290266590,0.9268382,88199.0,88195.0,0.1133826]
[1745290267194,0.9268382,88199.0,88193.0,0.1133846]
[1745290267492,0.9268382,88199.0,88189.0,0.11339]
[1745290267693,0.9268382,88199.0,88190.0,0.1133888]
[1745290267895,0.9268382,88199.0,88189.0,0.0566948]
[1745290268095,0.9258382,88199.0,88192.0,0.1133866]
[1745290268289,0.9268382,88199.0,88192.0,0.1133866]
[1745290268585,0.9268382,88199.0,88192.0,0.1133862]
[1745290269392,0.9258382,88199.0,88192.0,0.1133862]
[1745290269593,0.9268382,88199.0,88193.0,0.1133851]
[1745290270299,0.9268382,88199.0,88189.0,0.11339]
[1745290270495,1.0392182,88199.0,88189.0,0.056695]
[1745290270794,0.9268382,88199.0,88190.0,0.0566945]
[1745290270995,0.9268382,88199.0,88191.0,0.03]
[1745290271197,0.4526605,88199.0,88198.0,0.11354901]
[1745290271387,0.5660382,88199.0,88198.0,0.11354901]
[1745290271594,0.5661182,88199.0,88198.0,0.11354901]
[1745290272090,0.5661182,88199.0,88198.0,0.30554901]
[1745290272289,0.4865182,88199.0,88198.0,0.30554901]
[1745290272489,0.5661182,88199.0,88198.0,0.30554901]
[1745290272994,0.5361182,88199.0,88198.0,0.30554901]
[1745290273185,0.5351182,88199.0,88198.0,0.30554901]
[1745290273383,0.5361182,88199.0,88198.0,0.30554901]
[1745290273595,0.5351182,88199.0,88198.0,0.19217011]
[1745290274392,0.5998182,88199.0,88198.0,0.30554901]
[1745290274593,0.6008182,88199.0,88198.0,0.30554901]
[1745290277196,0.6008182,88199.0,88198.0,0.11354901]
[1745290277800,0.5998182,88199.0,88198.0,0.11354901]
[1745290278197,0.5998182,88199.0,88198.0,0.30554901]
[1745290279105,0.5988182,88199.0,88198.0,0.30554901]
[1745290280304,0.5998182,88199.0,88198.0,0.30554901]
[1745290281703,0.4063978,88199.0,88198.0,0.30554901]